bitfinex/quotes_ETHUSD_20250123
["timestamp","ask_amount","ask_price","bid_price","bid_amount"]
[1737662905674,3.419889,3216.5,3215.9,0.7901]
[1737662905875,3.419889,3216.5,3215.9,3.89963]
[1737662906105,3.10906,3216.4,3215.9,0.7901]
[1737662906303,0.310899,3216.5,3215.5,3.9028]
[1737662906304,0.623399,3216.5,3215.5,3.9028]
[1737662906575,3.10926,3216.2,3215.6,3.10983]
[1737662906786,0.623399,3216.5,3215.5,0.7929]
[1737662906985,0.75132296,3216.5,3215.1,0.7929]
[1737662907182,3.10969,3215.8,3215.1,3.90321]
[1737662907799,3.10969,3215.8,3215.2,3.11017]
[1737662908001,3.10935,3216.1,3215.1,0.7929]
[1737662908294,3.11021,3215.3,3214.8,0.7929]
[1737662908512,3.11032,3215.1,3214.8,0.7929]
[1737662908882,3.11021,3215.3,3214.8,0.7929]
[1737662909079,0.3125,3215.5,3214.8,0.7929]
[1737662909890,3.1099,3215.6,3214.9,3.11044]
[1737662910433,3.10995,3215.5,3214.9,3.11044]
[1737662910611,3.11003,3215.4,3214.9,3.11044]
[1737662911017,3.10995,3215.5,3214.9,3.11044]
[1737662911428,3.0,3215.6,3215.0,3.11034]
[1737662911731,3.10957,3215.9,3215.2,3.11015]
[1737662911898,3.10965,3215.8,3215.3,0.7929]
[1737662912257,3.10991,3215.6,3214.9,0.7929]
[1737662912533,0.62056737,3216.1,3214.9,0.7929]
[1737662912700,3.11041,3215.0,3214.5,0.7813]
[1737662912908,0.3125,3215.3,3212.5,3.11277]
[1737662912909,0.311041,3214.9,3213.8,3.11151]
[1737662913102,3.11117,3214.3,3213.6,3.1117]
[1737662913298,3.11117,3214.3,3213.4,0.7813]
[1737662913299,3.1113,3214.1,3213.4,3.89325]
[1737662913584,3.11131,3214.1,3213.4,3.89319]
[1737662913787,3.11109,3214.3,3213.6,3.11176]
[1737662913788,3.1112,3214.2,3213.6,3.11176]
[1737662914002,3.1112,3214.2,3213.4,3.89319]
[1737662914225,3.733429,3214.2,3213.5,3.11181]
[1737662914425,0.622229,3214.2,3213.6,3.11168]
[1737662914595,3.11134,3214.1,3213.4,3.89319]
[1737662914987,3.11134,3214.1,3213.5,3.11185]
[1737662915327,3.11134,3214.1,3213.6,0.05798976]
[1737662916329,6.22225,3214.3,3213.6,3.16975976]
[1737662916633,3.11129,3214.1,3213.6,0.05798976]
[1737662916853,0.311129,3214.0,3213.4,3.89319]
[1737662917009,0.311129,3214.0,3213.7,0.05792442]
[1737662917208,0.311129,3214.0,3213.4,3.89319]
[1737662917411,0.311129,3214.0,3213.5,3.16989045]
[1737662917610,0.311129,3214.0,3213.5,0.05803045]
[1737662917971,3.11122,3214.2,3213.6,3.11171]
[1737662918251,3.11122,3214.2,3213.7,0.05792031]
[1737662919002,3.11158,3213.8,3213.7,0.05792031]
[1737662919205,3.11145,3214.0,3213.4,0.7813]
[1737662919448,3.11151,3213.9,3213.4,0.7813]
[1737662919661,3.11149,3213.9,3213.4,0.7813]
[1737662919951,3.733784,3213.9,3213.5,0.05802223]
[1737662920571,0.622294,3213.9,3213.5,0.05802223]
[1737662920858,3.11145,3214.0,3213.5,0.05802223]
[1737662921711,3.11148,3213.9,3213.5,0.05802223]
[1737662921955,3.11177,3213.6,3213.5,0.05802223]
[1737662922309,3.11167,3213.8,3213.2,3.11209]
[1737662922510,3.733979,3213.8,3213.2,3.11209]
[1737662922716,3.11151,3213.9,3213.3,3.93366122]
[1737662923023,3.72259614,3214.1,3213.3,3.93366122]
[1737662923024,3.0,3214.0,3213.5,3.11184]
[1737662923229,3.11122,3214.2,3213.5,3.11184]
[1737662923430,3.11134,3214.1,3213.6,0.05862217]
[1737662923613,3.733584,3214.1,3213.6,3.17036217]
[1737662923808,3.11134,3214.1,3213.6,35.05862217]
[1737662924008,3.11167,3213.7,3213.6,0.05862217]
[1737662924223,3.11167,3213.7,3213.1,3.11221]
[1737662924429,3.11167,3213.7,3213.6,0.05862217]
[1737662924731,3.11183,3213.6,3213.0,3.87673]
[1737662925520,3.11167,3213.7,3213.1,3.11224]
[1737662925716,3.11177,3213.6,3213.1,3.11224]
[1737662927155,6.22343,3213.7,3213.1,3.11224]
[1737662927459,3.11167,3213.7,3213.1,3.11224]
[1737662928136,6.22342,3213.7,3213.1,3.11224]
[1737662928650,3.11167,3213.7,3213.1,3.11224]
[1737662928847,3.11153,3213.9,3213.1,3.11224]
[1737662929049,3.11161,3213.8,3213.3,3.11206]
[1737662929215,3.11141,3214.0,3213.0,0.7644]
[1737662929216,0.3125,3214.2,3213.4,3.11195]
[1737662929419,3.0,3214.0,3213.5,3.11185]
[1737662929644,6.11145,3214.0,3213.5,3.11185]
[1737662929920,3.1115,3213.9,3213.3,3.11201]
[1737662930319,4.033785,3213.9,3213.3,3.11201]
[1737662930620,3.11176,3213.7,3213.4,0.05890088]
[1737662930819,3.11176,3213.7,3213.0,3.87668]
[1737662931057,6.22353,3213.7,3213.1,3.17128997]
[1737662931261,3.11176,3213.7,3213.1,3.17128997]
[1737662931559,3.422936,3213.7,3213.1,3.17128997]
[1737662931760,3.11183,3213.6,3213.1,3.17128997]
[1737662933189,3.11198,3213.4,3213.1,0.05905997]
[1737662933594,3.11187,3213.5,3213.1,0.05905997]
[1737662933799,3.11216,3213.2,3213.1,0.05905997]
[1737662934095,3.734582,3213.2,3213.1,0.05936403]
[1737662934396,3.734582,3213.2,3212.6,0.8148]
[1737662934596,3.734582,3213.2,3213.1,0.05936403]
[1737662934756,3.734582,3213.2,3212.6,0.8148]
[1737662935099,3.11197,3213.4,3212.7,3.11258]
[1737662935298,6.42431,3213.6,3212.9,3.11236]
[1737662935449,3.11189,3213.5,3212.9,3.11236]
[1737662935650,3.11189,3213.5,3213.0,0.05941707]
[1737662936701,6.11181,3213.6,3213.0,3.17176707]
[1737662936868,3.81508478,3213.5,3213.0,3.17176707]
[1737662937050,3.81508478,3213.5,3213.0,0.05941707]
[1737662937051,0.70320478,3213.5,3213.0,0.05941707]
[1737662937251,3.11199,3213.4,3212.8,3.11246]
[1737662937451,3.11199,3213.4,3213.1,0.05936403]
[1737662937646,6.22404,3213.4,3212.8,3.11246]
[1737662937892,3.11208,3213.3,3213.2,0.059311]
[1737662938125,3.11208,3213.3,3212.6,0.8148]
[1737662938126,3.11249,3212.9,3212.6,0.8148]
[1737662938396,3.11249,3212.9,3212.2,3.88921]
[1737662938397,3.11256,3212.8,3212.2,3.88921]
[1737662939162,3.11249,3212.9,3212.3,3.11302]
[1737662939379,6.22502,3212.9,3212.3,3.11302]
[1737662940080,3.11249,3212.9,3212.2,3.88921]
[1737662940279,3.11249,3212.9,3212.4,3.11293]
[1737662941417,0.3125,3213.3,3212.2,1.165021]
[1737662941630,3.11193,3213.5,3213.0,3.90364]
[1737662942118,3.11193,3213.5,3213.0,38.90364]
[1737662942296,3.0,3213.6,3213.0,3.90364]
[1737662942495,3.0,3213.6,3213.1,3.11222]
[1737662942698,3.0,3213.6,3213.2,3.11215]
[1737662942880,3.11158,3213.8,3213.3,3.11205]
[1737662943087,3.11121,3214.2,3213.6,3.86651]
[1737662943282,3.11107,3214.4,3213.8,3.11155]
[1737662943588,3.1111,3214.3,3213.6,3.86649]
[1737662943902,3.11084,3214.6,3213.9,3.11142]
[1737662944113,0.75132296,3214.9,3213.7,3.11167]
[1737662944417,3.74296641,3214.8,3214.1,3.11128]
[1737662944575,0.43882296,3214.9,3214.2,0.7875]
[1737662944771,3.11044,3215.0,3214.3,3.11102]
[1737662944972,3.11061,3214.8,3214.2,0.7875]
[1737662945198,3.11062,3214.8,3214.4,0.0590283]
[1737662945409,3.11062,3214.8,3214.3,0.0590813]
[1737662945610,3.11062,3214.8,3214.2,0.7875]
[1737662945973,3.11062,3214.8,3214.3,0.0590813]
[1737662946314,3.83983871,3214.8,3214.2,0.7875]
[1737662946522,3.11082,3214.6,3214.4,0.0590283]
[1737662946701,3.11082,3214.6,3214.2,0.7875]
[1737662946926,3.11082,3214.6,3214.5,0.05897531]
[1737662947083,3.83983871,3214.8,3214.2,3.89869]
[1737662947290,3.11062,3214.8,3214.5,0.05897531]
[1737662947536,0.43882296,3215.0,3214.8,3.1106]
[1737662947698,3.11,3215.5,3214.8,3.9107]
[1737662947902,3.42242,3215.6,3214.9,3.16927338]
[1737662948103,3.0,3215.5,3214.9,3.16927338]
[1737662948314,3.10993,3215.5,3214.9,3.16927338]
[1737662948499,3.10992,3215.6,3215.0,3.11032]
[1737662948698,3.11,3215.5,3215.0,0.05871041]
[1737662948897,3.11,3215.5,3214.9,3.11046]
[1737662949098,3.11,3215.5,3215.1,0.05865744]
[1737662949334,3.11005,3215.4,3214.8,3.91068]
[1737662949495,3.10978,3215.7,3215.2,0.05860447]
[1737662949831,0.37217747,3215.6,3215.3,0.0585515]
[1737662950038,0.37217747,3215.6,3214.9,3.11049]
[1737662950331,3.10998,3215.5,3215.4,0.05849854]
[1737662950676,3.10993,3215.5,3214.8,0.8001]
[1737662950833,3.10993,3215.5,3214.0,3.0]
[1737662950834,3.11051,3214.9,3214.3,3.91649]
[1737662951411,3.11074,3214.7,3214.3,0.8054]
[1737662951632,3.42284,3215.1,3214.3,0.8054]
[1737662951959,3.11057,3214.9,3214.3,3.91645]
[1737662952754,3.42284,3215.1,3214.3,3.91645]
[1737662952893,3.1106,3214.9,3214.3,3.91645]
[1737662953101,3.11069,3214.8,3214.3,0.8054]
[1737662953430,3.11073,3214.7,3214.3,0.8054]
[1737662954523,0.653344,3214.9,3214.4,3.11092]
[1737662954721,0.653344,3214.9,3214.3,0.8054]
[1737662954722,0.62132864,3215.2,3214.3,0.8054]
[1737662954968,0.62132864,3215.2,3213.8,3.11151]
[1737662954969,3.62132864,3215.2,3214.8,0.8242]
[1737662955282,3.10993,3215.5,3214.9,3.11049]
[1737662956119,3.0,3215.6,3215.2,3.11021]
[1737662956319,6.10984,3215.6,3215.0,3.11034]
[1737662956546,3.10993,3215.5,3215.0,3.11034]
[1737662956928,3.10993,3215.5,3214.8,3.93479]
[1737662956929,4.30293555,3215.4,3214.8,0.8242]
[1737662957169,3.11014,3215.3,3214.8,0.8242]
[1737662957664,3.55152259,3215.5,3214.8,3.93473]
[1737662957818,3.55152259,3215.5,3214.8,0.8242]
[1737662958020,3.73536448,3215.8,3214.8,1.217687]
[1737662958250,0.62568448,3215.8,3215.3,0.7968]
[1737662958433,3.55099259,3216.0,3215.4,3.10998]
[1737662958761,3.55099259,3216.0,3215.5,0.05706525]
[1737662958958,3.10955,3215.9,3215.5,0.05706525]
[1737662959531,0.62022449,3216.0,3215.6,3.10982]
[1737662959734,0.88035555,3216.4,3215.7,0.7857]
[1737662959920,3.10916,3216.3,3215.7,3.95239114]
[1737662960115,3.10887,3216.6,3215.7,3.95239114]
[1737662960320,3.10887,3216.6,3215.9,3.10948]
[1737662960750,3.10887,3216.6,3216.0,0.05657475]
[1737662960951,3.10913,3216.4,3216.0,0.05657475]
[1737662961151,3.73133446,3216.6,3215.9,0.7861]
[1737662961368,3.73133446,3216.6,3216.1,3.16584181]
[1737662961530,3.73133446,3216.6,3216.0,3.10936]
[1737662961531,0.62246446,3216.6,3216.2,0.62752018]
[1737662961874,0.62246446,3216.6,3216.2,0.05646888]
[1737662962668,3.73133446,3216.6,3216.0,3.10936]
[1737662962868,3.73133446,3216.6,3216.3,0.05631745]
[1737662963076,3.73133446,3216.6,3216.0,3.10936]
[1737662963270,3.73133446,3216.6,3216.4,0.05626452]
[1737662963271,0.62246446,3216.6,3216.4,0.05626452]
[1737662963488,3.10869,3216.8,3216.1,3.10933]
[1737662963779,0.88035555,3216.9,3216.5,0.0562116]
[1737662964073,0.88035555,3216.9,3216.6,0.05615868]
[1737662964074,0.43882296,3216.9,3216.6,0.05615868]
[1737662964236,3.10877,3216.7,3216.6,0.05615868]
[1737662964441,3.10911,3216.4,3216.2,0.8189]
[1737662964691,3.10911,3216.4,3216.3,0.05616564]
[1737662964863,3.10911,3216.4,3215.9,0.8189]
[1737662965062,3.10931,3216.2,3215.9,0.8189]
[1737662966025,3.10931,3216.2,3215.6,3.89646]
[1737662966231,3.10938,3216.1,3215.6,3.89646]
[1737662966468,3.10953,3216.0,3215.6,0.7867]
[1737662966971,3.1094,3216.1,3215.6,0.7867]
[1737662967128,3.1094,3216.1,3215.7,0.389662]
[1737662967328,3.1094,3216.1,3215.6,3.89649]
[1737662967582,3.10934,3216.2,3215.6,3.89649]
[1737662967720,3.10919,3216.3,3215.7,3.10972]
[1737662968073,6.21843,3216.3,3215.7,3.10972]
[1737662968226,3.10919,3216.3,3215.7,3.10972]
[1737662968432,3.10919,3216.3,3215.7,3.10967]
[1737662969503,3.10931,3216.2,3215.7,3.10967]
[1737662969809,3.10954,3216.0,3215.6,0.7867]
[1737662970479,3.731384,3216.0,3215.6,0.7867]
[1737662970697,3.1095,3216.0,3215.6,0.7867]
[1737662970863,3.10957,3215.9,3215.6,0.7867]
[1737662971065,3.1095,3216.0,3215.6,0.7867]
[1737662971265,3.10965,3215.8,3215.6,0.7867]
[1737662973114,3.10965,3215.8,3215.3,3.11012]
[1737662973320,3.10965,3215.8,3215.3,3.88262]
[1737662975514,3.10965,3215.8,3215.4,0.0562357]
[1737662976817,0.43882296,3216.3,3215.4,0.45012127]
[1737662976981,0.62950305,3216.5,3215.9,0.7559]
[1737662977323,3.0,3216.3,3216.0,0.05609445]
[1737662977878,3.10935,3216.1,3216.0,0.05609445]
[1737662978079,2.98105999,3216.1,3215.6,0.792]
[1737662978419,2.98105999,3216.1,3216.0,0.05606983]
[1737662978728,2.98105999,3216.1,3216.0,0.056037]
[1737662979219,2.98105999,3216.1,3215.6,3.90182]
[1737662979420,2.98105999,3216.1,3216.0,0.056037]
[1737662979580,2.98105999,3216.1,3215.6,4.602996]
[1737662979779,2.98105999,3216.1,3216.0,0.056037]
[1737662979979,2.98105999,3216.1,3215.6,1.493176]
[1737662980489,2.98105999,3216.1,3215.7,0.05619583]
[1737662980752,2.98105999,3216.1,3215.7,0.52211601]
[1737662981091,3.10926,3216.2,3215.7,3.63185601]
[1737662982480,3.10926,3216.2,3215.7,0.52211601]
[1737662983604,6.2186,3216.2,3215.7,0.52211601]
[1737662983912,3.10926,3216.2,3215.7,3.63176601]
[1737662984530,0.88035555,3216.3,3215.7,3.63176601]
[1737662984531,3.98951555,3216.3,3215.7,3.63176601]
[1737662984739,3.98951555,3216.3,3215.8,0.4423766]
[1737662984940,3.10929,3216.2,3215.8,0.4423766]
[1737662985121,3.10939,3216.1,3215.9,0.05607353]
[1737662985636,3.10939,3216.1,3215.6,0.792]
[1737662985637,3.54821296,3216.1,3215.6,0.792]
[1737662985821,3.54821296,3216.1,3216.0,0.05602058]
[1737662985994,3.54821296,3216.1,3215.6,0.792]
[1737662986539,3.54821296,3216.1,3215.7,0.05617942]
[1737662986540,3.1097,3215.8,3215.7,0.05617942]
[1737662986740,6.762866,3215.8,3215.7,0.05617942]
[1737662986941,6.762866,3215.8,3214.1,0.15529004]
[1737662986942,6.42224,3215.7,3214.6,3.93954]
[1737662987240,0.88035555,3215.6,3214.6,0.8288]
[1737662987396,3.11014,3215.3,3214.8,3.11054]
[1737662987591,3.11014,3215.3,3214.7,0.05670908]
[1737662987834,3.11014,3215.3,3214.9,0.05660312]
[1737662988136,3.11014,3215.3,3215.0,0.05655015]
[1737662988496,3.11014,3215.3,3214.8,3.1106]
[1737662988697,3.11014,3215.3,3215.1,0.05649718]
[1737662988898,3.11014,3215.3,3214.8,3.1106]
[1737662989112,3.11014,3215.3,3215.2,0.05644421]
[1737662989329,3.11014,3215.3,3214.8,3.1106]
[1737662989592,7.48347196,3215.3,3215.2,0.05644421]
[1737662989796,3.11037,3215.1,3214.5,3.11082]
[1737662990035,3.11037,3215.1,3214.3,3.92414]
[1737662990036,3.11057,3214.9,3214.3,3.92412]
[1737662990340,3.11033,3215.1,3214.3,3.92412]
[1737662990515,3.11033,3215.1,3214.5,3.11089]
[1737662990914,6.86148296,3215.3,3214.6,0.05693033]
[1737662991641,6.86148296,3215.3,3214.6,3.16771033]
[1737662991841,0.63584677,3215.6,3214.7,0.8022]
[1737662991996,3.10979,3215.7,3214.7,0.85888268]
[1737662992202,3.10979,3215.7,3215.0,3.91252]
[1737662992399,3.10979,3215.7,3215.0,4.614815]
[1737662992618,3.11004,3215.4,3215.1,0.05697738]
[1737662992929,6.11022,3215.2,3215.1,0.05697738]
[1737662993130,6.54904296,3215.2,3215.1,0.05697738]
[1737662993328,3.11051,3215.0,3214.4,0.8179]
[1737662993506,6.54910296,3215.2,3214.4,0.8179]
[1737662993710,6.54910296,3215.2,3214.5,3.16802315]
[1737662993711,3.11044,3215.0,3214.5,3.16802315]
[1737662994044,3.11044,3215.0,3214.5,3.11081]
[1737662994345,3.11044,3215.0,3214.4,0.8179]
[1737662994346,3.11062,3214.8,3214.6,0.05716016]
[1737662994709,3.11062,3214.8,3214.1,3.11126]
[1737662994907,3.11085,3214.6,3214.1,3.92436]
[1737662995541,3.11071,3214.7,3214.1,3.92436]
[1737662995849,4.51521726,3215.0,3214.3,3.11102]
[1737662996057,6.11027,3215.2,3214.5,3.11081]
[1737662996206,3.0,3215.2,3214.7,3.11066]
[1737662996406,3.73944296,3215.3,3214.7,3.11066]
[1737662996807,3.11026,3215.2,3214.7,3.11066]
[1737662997006,3.11026,3215.2,3214.6,3.8921]
[1737662997242,3.11033,3215.1,3214.6,3.8921]
[1737662998350,3.11033,3215.1,3214.6,4.592408]
[1737663000055,0.43882296,3215.2,3214.6,4.592408]
[1737663000235,0.43882296,3215.2,3214.7,3.11068]
[1737663001320,3.54906296,3215.2,3214.7,3.11068]
[1737663001521,3.11012,3215.3,3214.7,3.11068]
[1737663001737,0.43882296,3215.6,3214.9,0.7956]
[1737663002047,3.10987,3215.6,3215.1,3.1103]
[1737663003297,3.11009,3215.4,3214.9,0.7956]
[1737663003407,0.43882296,3215.5,3214.9,0.7956]
[1737663003616,0.43882296,3215.5,3215.1,3.11029]
[1737663003810,0.43882296,3215.5,3215.1,0.701632]
[1737663004349,3.10988,3215.6,3215.1,0.701632]
[1737663004555,3.11,3215.5,3214.9,3.90603]
[1737663004852,3.11009,3215.4,3214.9,0.7956]
[1737663005009,3.11024,3215.2,3214.9,0.7956]
[1737663005210,3.11024,3215.2,3212.8,3.275]
[1737663005211,3.1107,3214.8,3214.3,0.8192]
[1737663005524,3.11045,3215.0,3214.4,0.05734414]
[1737663005711,3.11035,3215.1,3214.5,3.11087]
[1737663005915,3.11052,3214.9,3214.4,0.05734414]
[1737663006146,3.11052,3214.9,3214.6,0.05723816]
[1737663006455,3.11034,3215.1,3214.5,3.16818115]
[1737663006662,6.22075,3215.1,3214.7,0.05718518]
[1737663006813,6.22075,3215.1,3214.6,0.05723816]
[1737663007041,6.22075,3215.1,3214.8,0.0571322]
[1737663007241,6.22075,3215.1,3214.9,0.05707922]
[1737663007242,3.11034,3215.1,3214.9,0.05707922]
[1737663007444,3.89144696,3215.1,3214.3,0.8192]
[1737663007644,3.11092,3214.5,3214.4,0.05734414]
[1737663007882,0.3125,3214.7,3214.2,3.11118]
[1737663008081,3.11065,3214.8,3214.3,0.0575203]
[1737663008295,3.11065,3214.8,3214.2,3.11117]
[1737663008484,3.11072,3214.7,3214.3,0.0575203]
[1737663008688,3.42337,3214.6,3214.0,3.11134]
[1737663008888,3.11159,3213.8,3213.0,0.7882]
[1737663009180,3.11159,3213.8,3213.3,3.11204]
[1737663009339,0.43882296,3213.9,3213.3,3.11204]
[1737663009340,3.42392,3214.0,3213.4,3.1119]
[1737663009542,3.11142,3214.0,3213.4,3.1119]
[1737663009783,3.11148,3213.9,3213.4,0.622394]
[1737663009983,3.11174,3213.7,3213.1,3.11221]
[1737663010682,3.11198,3213.4,3213.0,0.7882]
[1737663010841,3.11198,3213.4,3212.6,3.94551]
[1737663011049,3.11222,3213.2,3212.6,0.8328]
[1737663011389,3.11225,3213.1,3212.6,0.8328]
[1737663011545,3.11225,3213.1,3212.6,3.94551]
[1737663011740,0.3125,3213.7,3212.7,3.11261]
[1737663011741,3.11216,3213.2,3212.7,3.11261]
[1737663011983,3.11191,3213.5,3212.7,3.11255]
[1737663012287,3.11169,3213.7,3213.0,3.11235]
[1737663012448,3.11177,3213.6,3212.8,3.1125]
[1737663012644,3.11169,3213.7,3213.1,3.11224]
[1737663012844,3.11184,3213.6,3212.9,3.11236]
[1737663013080,3.74037698,3213.7,3212.9,6.21438562]
[1737663013308,3.74037698,3213.7,3213.1,3.11221]
[1737663013594,3.11187,3213.5,3212.9,6.21438562]
[1737663013894,3.11178,3213.6,3213.0,3.11232]
[1737663014597,0.62868698,3213.7,3213.0,3.11232]
[1737663014598,0.62868698,3213.7,3213.3,3.11198]
[1737663014801,0.62868698,3213.7,3212.9,3.10202562]
[1737663014802,0.43882296,3214.3,3213.6,0.8017]
[1737663015096,3.11111,3214.3,3213.8,3.11157]
[1737663015258,3.11109,3214.4,3213.7,3.11165]
[1737663015459,3.11115,3214.3,3213.7,3.11165]
[1737663016000,3.11115,3214.3,3213.7,0.702519]
[1737663016297,3.11115,3214.3,3213.6,3.91339]
[1737663016471,3.11115,3214.3,3213.7,3.11166]
[1737663016657,3.43882296,3214.4,3213.7,3.11166]
[1737663016861,6.54984296,3214.4,3213.9,3.11142]
[1737663017891,6.54984296,3214.4,3213.7,3.11166]
[1737663018095,3.11112,3214.3,3213.7,3.502996]
[1737663018338,6.54984296,3214.4,3213.7,3.502996]
[1737663018483,6.54984296,3214.4,3213.8,3.11157]
[1737663019091,3.1111,3214.3,3213.7,3.502996]
[1737663019399,3.43882296,3214.4,3213.7,3.11158]
[1737663019602,3.0,3214.5,3213.9,3.11139]
[1737663019900,3.11092,3214.5,3213.9,3.11142]
[1737663020599,3.11092,3214.5,3214.0,0.05873481]
[1737663020792,3.74662362,3214.7,3214.0,0.37575029]
[1737663020995,3.86186296,3214.9,3214.1,3.89622]
[1737663020996,3.54936296,3214.9,3214.1,3.89622]
[1737663021191,0.43882296,3214.9,3214.5,3.11088]
[1737663021407,3.11036,3215.1,3214.5,3.11088]
[1737663021569,3.11036,3215.1,3214.6,0.05830181]
[1737663021771,6.22076,3215.1,3214.6,0.05830181]
[1737663022102,6.22076,3215.1,3214.5,3.11088]
[1737663022305,3.11036,3215.1,3214.6,0.05817038]
[1737663022604,3.11053,3214.9,3214.6,0.05817038]
[1737663023107,3.11036,3215.1,3214.6,0.05817038]
[1737663023477,0.62955517,3215.3,3215.2,3.11022]
[1737663023669,3.42188,3216.1,3215.4,3.11001]
[1737663023870,0.3125,3216.1,3215.5,3.16690491]
[1737663024174,0.3125,3216.1,3215.5,0.05697491]
[1737663024175,3.42193,3216.1,3215.5,0.05697491]
[1737663024602,3.10947,3216.0,3215.5,0.05697491]
[1737663024805,3.10967,3215.8,3215.5,0.05697491]
[1737663025005,3.10983,3215.6,3215.5,0.05697491]
[1737663025207,3.11018,3215.3,3214.8,0.8131]
[1737663025607,3.11018,3215.3,3214.9,0.05709976]
[1737663026033,3.11041,3215.0,3214.9,0.05709976]
[1737663026193,4.2244307,3215.0,3214.9,0.05709976]
[1737663026549,3.11089,3214.6,3214.1,0.8188]
[1737663026750,3.11109,3214.4,3213.8,0.7627]
[1737663026894,3.11051,3214.9,3213.8,0.7627]
[1737663026895,3.11128,3214.2,3213.8,0.7627]
[1737663027807,3.11113,3214.3,3213.8,0.7627]
[1737663028128,3.1112,3214.2,3213.8,0.7627]
[1737663028508,6.22208,3214.4,3213.8,1.150133]
[1737663028719,3.11102,3214.4,3213.8,1.150133]
[1737663028894,3.11102,3214.4,3213.8,4.261673]
[1737663029231,3.72359193,3214.6,3213.8,4.261673]
[1737663029394,3.11082,3214.6,3213.8,4.261673]
[1737663029594,3.11082,3214.6,3213.9,0.4261673]
[1737663030133,3.111,3214.4,3213.9,0.4261673]
[1737663030852,4.92398802,3215.0,3213.8,0.7627]
[1737663031027,3.11115,3214.3,3213.8,0.7627]
[1737663033349,3.11115,3214.3,3213.8,3.87427]
[1737663035640,3.11115,3214.3,3213.9,0.08965677]
[1737663036038,3.11136,3214.1,3213.9,0.08965677]
[1737663036239,3.11138,3214.0,3213.9,0.08965677]
[1737663036438,3.42388,3214.0,3213.9,0.08965677]
[1737663036669,3.11185,3213.6,3213.1,0.7651]
[1737663036943,3.11215,3213.3,3213.2,0.09003489]
[1737663037243,3.77141363,3213.3,3213.2,0.09003489]
[1737663037404,3.11215,3213.3,3212.8,3.87764]
[1737663037603,3.11215,3213.3,3213.2,0.09076991]
[1737663037812,3.11247,3212.9,3212.5,0.7651]
[1737663038011,3.11232,3213.1,3212.5,0.7651]
[1737663038239,3.1124,3213.0,3212.5,3.87793]
[1737663038424,3.11248,3212.9,3212.5,0.7651]
[1737663038745,3.11264,3212.8,3212.2,0.817]
[1737663039115,3.11264,3212.8,3212.2,3.93012]
[1737663039323,7.159775,3213.0,3212.3,3.11301]
[1737663039518,3.0,3213.2,3211.9,3.11338]
[1737663039744,0.62122975,3213.2,3212.7,3.11264]
[1737663040145,3.0,3213.3,3212.8,3.11254]
[1737663040447,3.0,3213.3,3212.8,3.92874]
[1737663040641,6.11207,3213.3,3212.8,0.8162]
[1737663040948,3.0,3213.3,3212.8,3.92874]
[1737663041147,0.3125,3214.0,3213.1,3.11217]
[1737663041446,0.61033535,3214.1,3213.5,0.8256]
[1737663041635,6.53482,3214.3,3213.6,38.11176]
[1737663041833,3.0,3214.2,3213.6,38.11176]
[1737663042142,3.111,3214.4,3213.8,3.11151]
[1737663042345,3.72861129,3214.5,3214.0,3.11138]
[1737663042550,3.42327,3214.7,3214.1,0.8117]
[1737663042842,3.111,3214.4,3214.1,0.8117]
[1737663043048,3.1111,3214.3,3214.1,0.8117]
[1737663043344,3.11119,3214.2,3213.4,3.81038]
[1737663043544,3.11144,3214.0,3213.4,3.81038]
[1737663043747,3.11119,3214.2,3213.5,3.11179]
[1737663043948,3.11119,3214.2,3213.4,3.81038]
[1737663044314,3.11119,3214.2,3213.6,3.11175]
[1737663045629,3.11101,3214.4,3213.8,3.11152]
[1737663045852,3.11101,3214.4,3213.6,3.11175]
[1737663046149,3.11114,3214.3,3213.7,3.11165]
[1737663046936,3.11114,3214.3,3213.8,3.11156]
[1737663047255,3.11099,3214.5,3213.8,3.11156]
[1737663047455,3.11099,3214.5,3213.9,3.11147]
[1737663047821,3.111,3214.4,3213.8,3.11156]
[1737663048031,3.111,3214.4,3213.8,6.22308]
[1737663048217,3.111,3214.4,3213.8,3.11152]
[1737663048653,3.72890481,3214.6,3213.9,3.11142]
[1737663048853,3.11091,3214.5,3213.8,3.11151]
[1737663049253,1.02219529,3214.6,3213.6,3.11169]
[1737663049488,3.1109,3214.5,3213.6,3.11172]
[1737663049758,3.1109,3214.5,3213.9,3.89311]
[1737663050273,3.61805481,3214.6,3214.1,3.11126]
[1737663050456,6.72887481,3214.6,3214.1,3.11126]
[1737663050869,3.1109,3214.5,3214.2,0.0902503]
[1737663051070,3.1109,3214.5,3213.9,3.8931]
[1737663051251,3.1109,3214.5,3214.0,0.09035009]
[1737663051458,3.1109,3214.5,3214.0,3.20169009]
[1737663052711,3.1109,3214.5,3214.0,0.09035009]
[1737663052890,0.61805481,3214.6,3214.0,0.09035009]
[1737663053061,6.87984963,3214.1,3212.8,0.832]
[1737663053260,6.87984963,3214.1,3211.3,0.5]
[1737663053261,3.11216,3213.2,3212.3,0.832]
[1737663053474,0.41081899,3213.2,3212.3,0.832]
[1737663053676,3.11284,3212.5,3212.3,0.832]
[1737663053861,3.11276,3212.6,3212.4,0.0851257]
[1737663054062,3.11276,3212.6,3212.0,0.7777]
[1737663054063,3.735293,3212.6,3212.0,3.89101]
[1737663054292,0.622533,3212.6,3212.1,3.11322]
[1737663054499,3.11267,3212.7,3212.1,3.19630818]
[1737663055498,3.11257,3212.8,3212.1,3.19630818]
[1737663055707,3.11272,3212.7,3212.1,3.19630818]
[1737663058541,3.11249,3212.9,3212.1,3.19623818]
[1737663058542,3.11257,3212.8,3212.1,3.19623818]
[1737663058682,0.3125,3213.3,3212.1,3.19623818]
[1737663058683,3.11226,3213.1,3212.1,0.08308818]
[1737663059017,3.11236,3213.0,3212.4,3.11285]
[1737663059498,3.11236,3213.0,3212.5,0.08287194]